fUSD/lending_fUSD_20250609
["ID","MTS","AMOUNT","RATE_DAILY","PERIOD"]
[365139058,1749486643069,-490.0,0.00019178,2]
[365139060,1749486643078,-490.0,0.00019178,2]
[365139061,1749486643088,-490.0,0.00019178,2]
[365139062,1749486643096,-1383.75,0.00019178,2]
[365139063,1749486643106,-4366.5,0.00019178,2]
[365139064,1749486643115,-490.0,0.00019178,2]
[365139065,1749486643125,-884.96,0.00019178,2]
[365139066,1749486643134,-629.76,0.00019178,2]
[365139067,1749486643143,-673.54,0.00019178,2]
[365139068,1749486643152,-490.0,0.00019178,2]
[365139069,1749486643161,-577.06,0.00019178,2]
[365139070,1749486643171,-1060.61,0.00019178,2]
[365139071,1749486643180,-1276.18,0.00019178,2]
[365139072,1749486643189,-490.0,0.00019178,2]
[365139073,1749486643199,-795.0,0.00019178,2]
[365139074,1749486643208,-490.0,0.00019178,2]
[365139075,1749486643217,-856.6,0.00019178,2]
[365139076,1749486643227,-1079.37,0.00019178,2]
[365139077,1749486643236,-925.06,0.00019178,2]
[365139078,1749486643247,-1831.7,0.00019178,2]
[365139079,1749486643256,-490.0,0.00019178,2]
[365139080,1749486643265,-2726.76,0.00019178,2]
[365139081,1749486643274,-490.0,0.00019178,2]
[365139082,1749486643284,-1600.06,0.00019178,2]
[365139083,1749486643293,-539.45,0.00019178,2]
[365139084,1749486643303,-490.0,0.00019178,2]
[365139085,1749486643312,-490.0,0.00019178,2]
[365139086,1749486643321,-816.4,0.00019178,2]
[365139087,1749486643331,-750.8,0.00019178,2]
[365139088,1749486643341,-490.0,0.00019178,2]
[365139089,1749486643351,-836.73,0.00019178,2]
[365139090,1749486643360,-718.93,0.00019178,2]
[365139091,1749486643369,-986.89,0.00019178,2]
[365139092,1749486643381,-4238.81,0.00019178,2]
[365139093,1749486643391,-702.09,0.00019178,2]
[365139094,1749486643400,-5082.42,0.00019178,2]
[365139095,1749486643410,-516.12,0.00019178,2]
[365139096,1749486643419,-573.11686742,0.00019178,2]
[365139097,1749486643429,-642.4,0.00019178,2]
[365139098,1749486643439,-490.0,0.00019178,2]
[365139099,1749486643449,-490.0,0.00019178,2]
[365139100,1749486643459,-656.2,0.00019178,2]
[365139101,1749486643469,-427.18,0.00019178,2]
[365139102,1749486643479,-490.0,0.00019178,2]
[365139103,1749486643488,-490.0,0.00019178,2]
[365139104,1749486643498,-262.41708235,0.00019178,2]
[365139105,1749486643508,-490.0,0.00019178,2]
[365139106,1749486643518,-490.0,0.00019178,2]
[365139107,1749486643528,-490.0,0.00019178,2]
[365139108,1749486643538,-1027.08,0.00019178,2]
[365139109,1749486643547,-856.64,0.00019178,2]
[365139110,1749486643557,-490.0,0.00019178,2]
[365139111,1749486643567,-720.61,0.00019178,2]
[365139112,1749486643577,-594.46,0.00019178,2]
[365139113,1749486643586,-498.4,0.00019178,2]
[365139114,1749486643596,-2372.8,0.00019178,2]
[365139115,1749486643605,-544.38,0.00019178,2]
[365139116,1749486643615,-490.0,0.00019178,2]
[365139117,1749486643625,-490.0,0.00019178,2]
[365139118,1749486643635,-490.0,0.00019178,2]
[365139119,1749486643645,-1189.49,0.00019178,2]
[365139120,1749486643655,-490.0,0.00019178,2]
[365139121,1749486643664,-1119.12,0.00019178,2]
[365139122,1749486643673,-923.22,0.00019178,2]
[365139123,1749486643684,-656.41,0.00019178,2]
[365139124,1749486643693,-1148.89,0.00019178,2]
[365139125,1749486643703,-522.78,0.00019178,2]
[365139126,1749486643713,-1594.43,0.00019178,2]
[365139127,1749486643722,-887.21,0.00019178,2]
[365139128,1749486643731,-829.31,0.00019178,2]
[365139129,1749486643742,-490.0,0.00019178,2]
[365139130,1749486643751,-1323.92,0.00019178,2]
[365139131,1749486643761,-373.78442438,0.00019178,2]
[365139132,1749486643770,-746.34,0.00019178,2]
[365139133,1749486643780,-950.45,0.00019178,2]
[365139134,1749486643789,-490.0,0.00019178,2]
[365139135,1749486643799,-919.13,0.00019178,2]
[365139136,1749486643808,-782.66,0.00019178,2]
[365139137,1749486643818,-2460.24,0.00019178,2]
[365139138,1749486643827,-1109.54,0.00019178,2]
[365139139,1749486643836,-490.0,0.00019178,2]
[365139140,1749486643845,-1735.54,0.00019178,2]
[365139141,1749486643859,-490.0,0.00019178,2]
[365139142,1749486643869,-490.0,0.00019178,2]
[365139143,1749486643878,-2408.19,0.00019178,2]
[365139144,1749486643887,-665.3,0.00019178,2]
[365139145,1749486643898,-490.0,0.00019178,2]
[365139146,1749486643908,-490.0,0.00019178,2]
[365139147,1749486643917,-492.97,0.00019178,2]
[365139148,1749486643927,-490.0,0.00019178,2]
[365139149,1749486643937,-490.0,0.00019178,2]
[365139150,1749486643946,-1205.19,0.00019178,2]
[365139151,1749486643956,-490.0,0.00019178,2]
[365139152,1749486643966,-490.0,0.00019178,2]
[365139153,1749486643975,-501.1,0.00019178,2]
[365139154,1749486643984,-776.86,0.00019178,2]
[365139155,1749486643994,-574.33,0.00019178,2]
[365139156,1749486644003,-1100.6,0.00019178,2]
[365139157,1749486644012,-540.05,0.00019178,2]
[365139158,1749486644022,-490.0,0.00019178,2]
[365139159,1749486644031,-490.0,0.00019178,2]
[365139160,1749486644040,-490.0,0.00019178,2]
[365139161,1749486644049,-490.0,0.00019178,2]
[365139162,1749486644058,-490.0,0.00019178,2]
[365139163,1749486644067,-1000.87,0.00019178,2]
[365139164,1749486644076,-490.0,0.00019178,2]
[365139165,1749486644086,-490.0,0.00019178,2]
[365139166,1749486644095,-490.0,0.00019178,2]
[365139167,1749486644104,-490.0,0.00019178,2]
[365139168,1749486644113,-492.25,0.00019178,2]
[365139169,1749486644123,-1608.92,0.00019178,2]
[365139170,1749486644133,-490.0,0.00019178,2]
[365139171,1749486644143,-490.0,0.00019178,2]
[365139172,1749486644152,-1820.67,0.00019178,2]
[365139173,1749486644162,-1083.11,0.00019178,2]
[365139174,1749486644171,-2199.38,0.00019178,2]
[365139175,1749486644181,-5652.2,0.00019178,2]
[365139176,1749486644191,-490.0,0.00019178,2]
[365139177,1749486644200,-513.04,0.00019178,2]
[365139178,1749486644210,-854.69,0.00019178,2]
[365139179,1749486644219,-1439.81,0.00019178,2]
[365139180,1749486644228,-1005.23,0.00019178,2]
[365139181,1749486644238,-490.0,0.00019178,2]
[365139182,1749486644248,-1845.64,0.00019178,2]
[365139183,1749486644256,-490.0,0.00019178,2]
[365139184,1749486644265,-1740.02,0.00019178,2]
[365139185,1749486644274,-490.0,0.00019178,2]
[365139186,1749486644283,-553.15,0.00019178,2]
[365139187,1749486644294,-490.0,0.00019178,2]
[365139188,1749486644303,-898.16,0.00019178,2]
[365139189,1749486644312,-490.0,0.00019178,2]
[365139190,1749486644322,-490.0,0.00019178,2]
[365139191,1749486644332,-1173.65,0.00019178,2]
[365139192,1749486644341,-1109.13,0.00019178,2]
[365139193,1749486644351,-490.0,0.00019178,2]
[365139194,1749486644361,-529.15,0.00019178,2]
[365139195,1749486644370,-554.79,0.00019178,2]
[365139196,1749486644381,-1471.82,0.00019178,2]
[365139197,1749486644390,-1486.04,0.00019178,2]
[365139198,1749486644400,-490.0,0.00019178,2]
[365139199,1749486644411,-490.0,0.00019178,2]
[365139200,1749486644420,-490.0,0.00019178,2]
[365139201,1749486644429,-898.13,0.00019178,2]
[365139202,1749486644438,-638.18,0.00019178,2]
[365139203,1749486644448,-1858.64,0.00019178,2]
[365139204,1749486644458,-1353.57,0.00019178,2]
[365139205,1749486644552,-510.24,0.00019178,2]
[365139206,1749486644607,-490.0,0.00019178,2]
[365139207,1749486644618,-490.0,0.00019178,2]
[365139208,1749486644628,-490.0,0.00019178,2]
[365139209,1749486644638,-991.94,0.00019178,2]
[365139210,1749486644648,-490.0,0.00019178,2]
[365139211,1749486644658,-713.62,0.00019178,2]
[365139212,1749486644668,-328.59729077,0.00019178,2]
[365139213,1749486644679,-490.0,0.00019178,2]
[365139214,1749486644688,-490.0,0.00019178,2]
[365139215,1749486644698,-176.280312,0.00019178,2]
[365139216,1749486644708,-347.29916026,0.00019178,2]
[365139217,1749486644718,-490.0,0.00019178,2]
[365139218,1749486644727,-490.0,0.00019178,2]
[365139219,1749486644736,-983.19,0.00019178,2]
[365139220,1749486644748,-490.0,0.00019178,2]
[365139221,1749486644759,-670.24,0.00019178,2]
[365139222,1749486644769,-2482.01,0.00019178,2]
[365139223,1749486644778,-490.0,0.00019178,2]
[365139224,1749486644788,-490.0,0.00019178,2]
[365139225,1749486644797,-1007.96,0.00019178,2]
[365139226,1749486644807,-3518.39,0.00019178,2]
[365139227,1749486644816,-324.06178362,0.00019187,2]
[365139228,1749486644826,-1000.84395462,0.00019205,3]
[365139229,1749486644835,-820.88,0.00019205,30]
[365139230,1749486644845,-324.06178362,0.00019242,2]
[365139231,1749486644857,-324.06178362,0.00019296,2]
[365139232,1749486644867,-35540.45284259,0.000193,2]
[365139233,1749486644876,-5652.2,0.00019341,2]
[365139234,1749486644886,-5652.2,0.00019341,2]
[365139235,1749486644895,-5652.2,0.00019341,2]
[365139236,1749486644905,-5652.2,0.00019341,2]
[365139237,1749486644914,-5652.2,0.00019341,2]
[365139238,1749486644923,-5652.2,0.00019341,2]
[365139239,1749486644935,-5652.2,0.00019341,2]
[365139240,1749486644945,-5652.2,0.00019341,2]
[365139241,1749486644954,-5652.2,0.00019341,2]
[365139242,1749486644963,-5652.2,0.00019341,2]
[365139243,1749486644973,-5652.2,0.00019341,2]
[365139244,1749486644982,-5652.2,0.00019341,2]
[365139245,1749486644992,-5652.2,0.00019341,2]
[365139246,1749486645001,-5652.2,0.00019341,2]
[365139247,1749486645011,-5652.2,0.00019341,2]
[365139248,1749486645022,-5652.2,0.00019341,2]
[365139249,1749486645032,-5652.2,0.00019341,2]
[365139250,1749486645041,-5652.2,0.00019341,2]
[365139251,1749486645051,-490.0,0.00019342,2]
[365139252,1749486645061,-490.0,0.00019342,2]
[365139253,1749486645070,-490.0,0.00019342,2]
[365139254,1749486645080,-490.0,0.00019342,2]
[365139255,1749486645090,-490.0,0.00019342,2]
[365139256,1749486645099,-490.0,0.00019342,2]
[365139257,1749486645109,-250.0,0.00019342,2]
[365139258,1749486645119,-490.0,0.00019342,2]
[365139259,1749486645128,-490.0,0.00019342,2]
[365139260,1749486645138,-490.0,0.00019342,2]
[365139261,1749486645147,-490.0,0.00019342,2]
[365139262,1749486645157,-490.0,0.00019342,2]
[365139263,1749486645166,-490.0,0.00019342,2]
[365139264,1749486645176,-490.0,0.00019342,2]
[365139265,1749486645185,-490.0,0.00019342,2]
[365139266,1749486645195,-490.0,0.00019342,2]
[365139267,1749486645206,-490.0,0.00019342,2]
[365139268,1749486645215,-490.0,0.00019342,2]
[365139269,1749486645224,-490.0,0.00019342,2]
[365139270,1749486645234,-490.0,0.00019342,2]
[365139271,1749486645246,-490.0,0.00019342,2]
[365139272,1749486645256,-490.0,0.00019342,2]
[365139273,1749486645265,-490.0,0.00019342,2]
[365139274,1749486645275,-490.0,0.00019342,2]
[365139275,1749486645284,-490.0,0.00019342,2]
[365139276,1749486645293,-490.0,0.00019342,2]
[365139277,1749486645303,-490.0,0.00019342,2]
[365139278,1749486645312,-490.0,0.00019342,2]
[365139279,1749486645322,-378.30586089,0.00019342,2]
[365139280,1749486645332,-490.0,0.00019342,2]
[365139281,1749486645341,-490.0,0.00019342,2]
[365139282,1749486645351,-490.0,0.00019342,2]
[365139283,1749486645361,-490.0,0.00019342,2]
[365139284,1749486645370,-490.0,0.00019342,2]
[365139285,1749486645380,-490.0,0.00019342,2]
[365139286,1749486645390,-490.0,0.00019342,2]
[365139287,1749486645399,-490.0,0.00019342,2]
[365139288,1749486645409,-203.95181614,0.00019342,2]
[365139289,1749486645419,-495.87373153,0.00019342,2]
[365139290,1749486645429,-490.0,0.00019342,2]
[365139291,1749486645439,-490.0,0.00019342,2]
[365139292,1749486645448,-490.0,0.00019342,2]
[365139293,1749486645457,-490.0,0.00019342,2]
[365139294,1749486645466,-958.41,0.00019342,2]
[365139295,1749486645475,-490.0,0.00019342,2]
[365139296,1749486645485,-490.0,0.00019342,2]
[365139297,1749486645495,-493.53,0.00019342,2]
[365139298,1749486645505,-490.0,0.00019342,2]
[365139299,1749486645515,-655.45,0.00019342,2]
[365139300,1749486645525,-544.8,0.00019342,2]
[365139301,1749486645535,-490.0,0.00019342,2]
[365139302,1749486645544,-490.0,0.00019342,2]
[365139303,1749486645554,-490.0,0.00019342,2]
[365139304,1749486645564,-562.05,0.00019342,2]
[365139305,1749486645574,-490.0,0.00019342,2]
[365139306,1749486645583,-490.0,0.00019342,2]
[365139307,1749486645593,-490.0,0.00019342,2]
[365139308,1749486645603,-490.0,0.00019342,2]
[365139309,1749486645612,-490.0,0.00019342,2]
[365139310,1749486645622,-511.1,0.00019342,2]
[365139311,1749486645632,-490.0,0.00019342,2]
[365139312,1749486645641,-881.53,0.00019342,2]
[365139313,1749486645651,-409.18263749,0.00019342,2]
[365139315,1749486646070,-80.81736251,0.00019342,2]
[365139316,1749486646080,-251.19148566,0.00019342,2]
[365139317,1749486646092,-238.80851434,0.00019342,2]
[365139318,1749486646102,-490.0,0.00019342,2]
[365139319,1749486646112,-490.0,0.00019342,2]
[365139320,1749486646122,-490.0,0.00019342,2]
[365139321,1749486646131,-490.0,0.00019342,2]
[365139322,1749486646142,-490.0,0.00019342,2]
[365139323,1749486646152,-490.0,0.00019342,2]
[365139324,1749486646162,-490.0,0.00019342,2]
[365139325,1749486646172,-490.0,0.00019342,2]
[365139326,1749486646182,-490.0,0.00019342,2]
[365139327,1749486646191,-490.0,0.00019342,2]
[365139328,1749486646202,-123.3018006,0.00019342,2]
[365139329,1749486646214,-366.6981994,0.00019342,2]
[365139330,1749486646224,-490.0,0.00019342,2]
[365139331,1749486646234,-490.0,0.00019342,2]
[365139332,1749486646244,-655.0,0.00019342,2]
[365139333,1749486646255,-490.0,0.00019342,2]
[365139334,1749486646264,-490.0,0.00019342,2]
[365139335,1749486646274,-490.0,0.00019342,2]
[365139336,1749486646284,-490.0,0.00019342,2]
[365139337,1749486646294,-490.0,0.00019342,2]
[365139338,1749486646304,-490.0,0.00019342,2]
[365139339,1749486646313,-490.0,0.00019342,2]
[365139340,1749486646323,-350.00645751,0.00019342,2]
[365139341,1749486646333,-490.0,0.00019342,2]
[365139342,1749486646343,-490.0,0.00019342,2]
[365139343,1749486646352,-490.0,0.00019342,2]
[365139344,1749486646655,-944.22,0.00019342,2]
[365139346,1749486646665,-1154.45,0.00019342,2]
[365139348,1749486646675,-490.0,0.00019342,2]
[365139350,1749486646684,-506.49,0.00019342,2]
[365139352,1749486646694,-490.0,0.00019342,2]
[365139354,1749486646703,-490.0,0.00019342,2]
[365139355,1749486646713,-490.0,0.00019342,2]
[365139356,1749486646722,-732.75,0.00019342,2]
[365139357,1749486646731,-648.67,0.00019342,2]
[365139358,1749486646741,-490.0,0.00019342,2]
[365139359,1749486646751,-1260.51,0.00019342,2]
[365139360,1749486646760,-490.0,0.00019342,2]
[365139361,1749486646770,-510.76,0.00019342,2]
[365139362,1749486646779,-490.0,0.00019342,2]
[365139363,1749486646793,-714.69,0.00019342,2]
[365139364,1749486646803,-393.290475,0.00019342,2]
[365139365,1749486646813,-490.0,0.00019342,2]
[365139366,1749486646822,-490.0,0.00019342,2]
[365139367,1749486646831,-490.0,0.00019342,2]
[365139368,1749486646841,-550.55654605,0.00019342,2]
[365139369,1749486646856,-327.40528947,0.00019342,2]
[365139370,1749486646868,-158.65816448,0.00019342,2]
[365139371,1749486646877,-1159.46,0.00019342,2]
[365139372,1749486646886,-597.03,0.00019342,2]
[365139373,1749486646897,-91.38099681,0.00019342,2]
[365139374,1749486647687,-490.0,0.00019178,2]
[365139375,1749486647697,-490.0,0.00019178,2]
[365139376,1749486647707,-490.0,0.00019178,2]
[365139377,1749486647717,-109.1666785,0.00019342,2]
[365139378,1749486647728,-490.0,0.00019342,2]
[365139379,1749486647737,-364.02117662,0.00019342,2]
[365139380,1749486647751,-125.97882338,0.00019342,2]
[365139381,1749486647760,-1053.48,0.00019342,2]
[365139382,1749486647769,-490.0,0.00019342,2]
[365139383,1749486647778,-546.9,0.00019342,2]
[365139384,1749486647786,-440.29510261,0.00019342,2]
[365139385,1749486647800,-49.70489739,0.00019342,2]
[365139386,1749486647808,-538.69,0.00019342,2]
[365139387,1749486647818,-54.03740259,0.00019342,2]
[365139388,1749486647830,-718.20259741,0.00019342,2]
[365139389,1749486647840,-624.4,0.00019342,2]
[365139390,1749486647850,-490.0,0.00019342,2]
[365139391,1749486647862,-490.0,0.00019342,2]
[365139392,1749486647871,-1314.05,0.00019342,2]
[365139393,1749486647880,-791.1,0.00019342,2]
[365139394,1749486647890,-797.34,0.00019342,2]
[365139395,1749486647901,-490.0,0.00019342,2]
[365139396,1749486647910,-490.0,0.00019342,2]
[365139397,1749486647920,-555.04,0.00019342,2]
[365139398,1749486647932,-893.02,0.00019342,2]
[365139399,1749486647942,-972.42,0.00019342,2]
[365139400,1749486647951,-490.0,0.00019342,2]
[365139401,1749486647961,-825.92,0.00019342,2]
[365139402,1749486647970,-671.83,0.00019342,2]
[365139403,1749486647980,-571.5,0.00019342,2]
[365139404,1749486647990,-708.33,0.00019342,2]
[365139405,1749486648001,-490.0,0.00019342,2]
[365139406,1749486648011,-490.0,0.00019342,2]
[365139407,1749486648021,-498.23,0.00019342,2]
[365139408,1749486648030,-463.54982344,0.00019342,2]
[365139409,1749486648043,-708.44017656,0.00019342,2]
[365139410,1749486648053,-672.36,0.00019342,2]
[365139411,1749486648063,-490.0,0.00019342,2]
[365139412,1749486648072,-276.64157122,0.00019342,2]
[365139413,1749486714176,250.0,0.00017996,2]
[365139415,1749486852082,203.0,0.00017673,2]
[365139417,1749486902152,1184.78,0.00016401,2]
[365139420,1749487065107,183.03,0.00016712,2]
[365139421,1749487389895,404.888,0.00018001,2]
[365139423,1749487551184,455.36,0.00013699,2]
[365139424,1749487691516,201.0,0.00017092,2]
[365139426,1749487764540,151.0,0.00017283,2]
[365139427,1749487794145,500.0,0.0002465,120]
[365139428,1749487800322,500.0,0.0002465,120]
[365139429,1749487807481,500.0,0.0002465,120]
[365139431,1749487814907,500.0,0.0002465,120]
[365139432,1749487822949,500.0,0.0002465,120]
[365139434,1749487832182,-164.24,0.0001808,2]
[365139435,1749487832191,-158.36,0.00018105,2]
[365139436,1749487832201,-195.22222241,0.00018105,2]
[365139437,1749487832210,-250.0,0.00018111,2]
[365139438,1749487832220,-218.2577511,0.00018133,2]
[365139439,1749487832230,-1000.0,0.00018174,2]
[365139440,1749487832239,-201.0,0.00018221,3]
[365139441,1749487832249,-876.97,0.00018233,2]
[365139442,1749487832263,-160.0847486,0.00018243,2]
[365139443,1749487832274,-300.0,0.00018243,2]
[365139444,1749487832284,-1200.0,0.00018243,2]
[365139445,1749487832294,-11085.85277984,0.00018244,2]
[365139446,1749487832316,-12814.14722016,0.00018244,2]
[365139447,1749487832326,-1184.78,0.00018665,2]
[365139448,1749487832336,-400.0,0.000188,6]
[365139449,1749487832346,-207.4,0.00018824,2]
[365139450,1749487832355,-900.0,0.000189,6]
[365139451,1749487832365,-1090.68572351,0.000189,2]
[365139452,1749487832375,-1090.68572325,0.00018934,2]
[365139453,1749487832384,-1090.68572325,0.00018969,2]
[365139454,1749487832395,-1090.68572325,0.00019003,2]
[365139455,1749487832404,-300.0,0.00019037,2]
[365139456,1749487832415,-13382.91,0.00019037,2]
[365139457,1749487832424,-1090.68572325,0.00019038,2]
[365139458,1749487832433,-152.75,0.00019068,2]
[365139459,1749487832443,-150.0,0.00019068,2]
[365139460,1749487832453,-150.0,0.00019068,2]
[365139461,1749487832467,-1090.68572325,0.00019072,2]
[365139462,1749487832482,-733.5143,0.00019074,2]
[365139463,1749487832491,-300.0,0.00019084,2]
[365139464,1749487832502,-1000.0,0.000191,2]
[365139466,1749487832511,-151.61,0.000191,2]
[365139468,1749487832522,-173.05,0.000191,2]
[365139470,1749487832531,-165.65,0.000191,2]
[365139472,1749487832541,-397.68,0.000191,2]
[365139474,1749487832551,-301.47,0.000191,2]
[365139475,1749487832561,-150.0,0.000191,2]
[365139476,1749487832570,-710.77,0.000191,2]
[365139477,1749487832580,-150.0,0.000191,2]
[365139478,1749487832590,-150.0,0.000191,2]
[365139479,1749487832599,-1000.0,0.00019104,2]
[365139518,1749487833051,-1090.68572325,0.00019107,2]
[365139520,1749487833062,-1090.68572325,0.00019141,2]
[365139522,1749487833073,-1000.0,0.00019157,2]
[365139524,1749487833082,-1000.0,0.00019166,2]
[365139526,1749487833092,-151.0,0.00019166,2]
[365139528,1749487833101,-500.0,0.00019173,2]
[365139530,1749487833111,-519.43,0.00019173,2]
[365139532,1749487833122,-1090.68572325,0.00019176,2]
[365139534,1749487833134,-427.3,0.00019177,2]
[365139536,1749487833149,-500.0,0.00019177,2]
[365139539,1749487833161,-276.12519968,0.00019177,2]
[365139541,1749487833172,-500.0,0.00019177,2]
[365139542,1749487833182,-500.0,0.00019177,2]
[365139544,1749487833192,-500.0,0.00019177,2]
[365139546,1749487833202,-500.0,0.00019177,2]
[365139548,1749487833212,-500.0,0.00019177,2]
[365139550,1749487833222,-500.0,0.00019177,2]
[365139552,1749487833232,-327.05920742,0.00019177,2]
[365139554,1749487833242,-500.0,0.00019177,2]
[365139556,1749487833256,-500.0,0.00019177,2]
[365139558,1749487833266,-500.0,0.00019177,2]
[365139560,1749487833277,-500.0,0.00019177,2]
[365139563,1749487833288,-500.0,0.00019177,2]
[365139565,1749487833298,-500.0,0.00019177,2]
[365139566,1749487833308,-500.0,0.00019177,2]
[365139568,1749487833317,-500.0,0.00019177,2]
[365139570,1749487833327,-500.0,0.00019177,2]
[365139572,1749487833338,-500.0,0.00019177,2]
[365139574,1749487833348,-500.0,0.00019177,2]
[365139576,1749487833360,-500.0,0.00019177,2]
[365139578,1749487833371,-500.0,0.00019177,2]
[365139580,1749487833381,-424.31360953,0.00019177,2]
[365139582,1749487833391,-328.22232857,0.00019178,2]
[365139584,1749487833401,-490.0,0.00019178,2]
[365139586,1749487833411,-490.0,0.00019178,2]
[365139588,1749487833421,-490.0,0.00019178,2]
[365139590,1749487833431,-490.0,0.00019178,2]
[365139592,1749487833441,-490.0,0.00019178,2]
[365139594,1749487833451,-490.0,0.00019178,2]
[365139596,1749487833461,-490.0,0.00019178,2]
[365139598,1749487833471,-490.0,0.00019178,2]
[365139600,1749487833481,-490.0,0.00019178,2]
[365139602,1749487833491,-490.0,0.00019178,2]
[365139604,1749487833501,-490.0,0.00019178,2]
[365139606,1749487833511,-490.0,0.00019178,2]
[365139608,1749487833520,-490.0,0.00019178,2]
[365139610,1749487833533,-490.0,0.00019178,2]
[365139612,1749487833543,-270.31914908,0.00019178,2]
[365139614,1749487833554,-490.0,0.00019178,2]
[365139616,1749487833564,-490.0,0.00019178,2]
[365139618,1749487833575,-490.0,0.00019178,2]
[365139620,1749487833585,-490.0,0.00019178,2]
[365139622,1749487833598,-490.0,0.00019178,2]
[365139624,1749487833610,-490.0,0.00019178,2]
[365139626,1749487833621,-490.0,0.00019178,2]
[365139628,1749487833632,-490.0,0.00019178,2]
[365139630,1749487833642,-400.0,0.00019178,2]
[365139632,1749487833653,-490.0,0.00019178,2]
[365139634,1749487833664,-490.0,0.00019178,2]
[365139636,1749487833676,-490.65,0.00019178,2]
[365139638,1749487833686,-490.0,0.00019178,2]
[365139640,1749487833696,-490.0,0.00019178,2]
[365139642,1749487833707,-490.0,0.00019178,2]
[365139644,1749487833718,-490.0,0.00019178,2]
[365139646,1749487833727,-490.0,0.00019178,2]
[365139648,1749487833737,-490.0,0.00019178,2]
[365139650,1749487833748,-214.19033185,0.00019178,2]
[365139652,1749487833758,-707.89,0.00019178,2]
[365139654,1749487833768,-186.170877,0.00019178,2]
[365139656,1749487833784,-490.0,0.00019178,2]
[365139658,1749487833794,-490.0,0.00019178,2]
[365139660,1749487833804,-420.0,0.00019178,2]
[365139662,1749487833814,-505.91465972,0.00019178,2]
[365139664,1749487833823,-670.96,0.00019178,2]
[365139666,1749487833833,-490.0,0.00019178,2]
[365139668,1749487833844,-526.67222496,0.00019178,2]
[365139669,1749487833854,-490.0,0.00019178,2]
[365139670,1749487833865,-490.0,0.00019178,2]
[365139671,1749487833876,-460.15761496,0.00019178,2]
[365139672,1749487833886,-490.0,0.00019178,2]
[365139673,1749487833896,-332.27442552,0.00019178,2]
[365139674,1749487833907,-490.0,0.00019178,2]
[365139675,1749487833917,-490.0,0.00019178,2]
[365139676,1749487833927,-490.0,0.00019178,2]
[365139677,1749487833937,-490.0,0.00019178,2]
[365139678,1749487833947,-490.0,0.00019178,2]
[365139679,1749487833957,-490.0,0.00019178,2]
[365139680,1749487833967,-490.0,0.00019178,2]
[365139682,1749487833977,-490.0,0.00019178,2]
[365139684,1749487833987,-490.0,0.00019178,2]
[365139686,1749487833997,-490.0,0.00019178,2]
[365139688,1749487834007,-861.82,0.00019178,2]
[365139690,1749487834017,-490.0,0.00019178,2]
[365139693,1749487834028,-934.41,0.00019178,2]
[365139695,1749487834038,-1757.12,0.00019178,2]
[365139697,1749487834048,-490.0,0.00019178,2]
[365139699,1749487834058,-490.0,0.00019178,2]
[365139701,1749487834068,-490.0,0.00019178,2]